bitfinex/quotes_ETHUSD_20240928
["timestamp","ask_amount","ask_price","bid_price","bid_amount"]
[1727559731007,6.88267456,2671.8,2671.4,3.84448959]
[1727559732747,3.13986456,2671.8,2671.4,7.58769959]
[1727559732934,3.13986456,2671.8,2671.4,3.84441959]
[1727559735315,3.13986456,2671.8,2671.5,3.74319]
[1727559735515,2.31858856,2671.9,2671.6,3.74302]
[1727559735715,2.31858856,2671.9,2671.6,3.84410506]
[1727559735915,1.56298856,2671.9,2671.6,3.84410506]
[1727559736718,1.56298856,2671.9,2671.7,3.74291]
[1727559736947,13.71884515,2672.1,2671.7,3.74291]
[1727559736948,1.56298856,2672.0,2671.7,3.74291]
[1727559737158,1.56298856,2672.0,2671.8,0.10096083]
[1727559737318,7.27,2672.1,2671.8,0.10096083]
[1727559737319,1.56298856,2672.1,2671.8,4.63884083]
[1727559737659,3.13986456,2672.2,2671.9,3.84358083]
[1727559737861,1.56298856,2672.2,2671.9,4.68169391]
[1727559738071,3.89546456,2672.4,2672.0,3.74251]
[1727559738277,2.332476,2672.4,2672.0,4.58062508]
[1727559738471,2.332476,2672.4,2672.1,0.1008449]
[1727559738770,1.576876,2672.4,2672.1,0.8826449]
[1727559755401,1.576876,2672.7,2672.2,3.7421]
[1727559755605,1.576876,2672.7,2672.3,0.8034]
[1727559756101,1.576876,2672.7,2672.4,0.10010801]
[1727559756262,5.318406,2672.7,2672.4,0.10010801]
[1727559756809,1.576876,2672.7,2672.4,0.10010801]
[1727559767386,1.576876,2672.7,2672.5,0.7863]
[1727559767685,1.576876,2672.7,2672.5,0.88598586]
[1727559772203,3.74142,2672.8,2672.5,0.88598586]
[1727559773778,3.74146,2672.8,2672.5,0.88598586]
[1727559775191,7.48294,2672.8,2672.5,0.88598586]
[1727559776409,3.74146,2672.8,2672.5,0.88598586]
[1727559776619,7.48296,2672.8,2672.5,0.88598586]
[1727559776794,7.48296,2672.8,2672.5,0.7863]
[1727559777118,3.74146,2672.8,2672.6,0.09958656]
[1727559777315,7.48295,2672.8,2672.6,0.09958656]
[1727559777683,3.74146,2672.8,2672.6,0.09958656]
[1727559777879,3.74146,2672.8,2672.5,0.7863]
[1727559778146,3.74146,2672.8,2672.7,0.09958656]
[1727559778304,3.74146,2672.8,2672.5,0.7863]
[1727559778305,7.48295,2672.8,2672.5,0.7863]
[1727559778686,3.74146,2672.8,2672.6,0.09958656]
[1727559778983,3.74146,2672.8,2672.5,0.7863]
[1727559779182,3.74146,2672.8,2672.6,0.09958656]
[1727559779413,3.74146,2672.8,2672.5,0.7863]
[1727559779621,3.74146,2672.8,2672.7,0.09958656]
[1727559779826,3.74146,2672.8,2672.5,0.7863]
[1727559780142,7.48295,2672.8,2672.7,0.09958656]
[1727559780423,3.74146,2672.8,2672.5,0.7863]
[1727559780631,3.74146,2672.8,2672.7,0.09958656]
[1727559780790,3.74146,2672.8,2672.5,0.7863]
[1727559780990,5.30444856,2672.8,2672.6,0.09958656]
[1727559781304,5.30444856,2672.8,2672.5,0.7863]
[1727559781797,5.30444856,2672.8,2672.6,0.09958656]
[1727559782001,9.04591856,2672.8,2672.5,0.7863]
[1727559782208,1.56298856,2672.7,2672.5,0.7863]
[1727559782406,1.56298856,2672.7,2672.6,0.09958656]
[1727559782619,1.56298856,2672.7,2672.5,0.7863]
[1727559782796,1.56298856,2672.7,2672.6,0.09958656]
[1727559783132,9.04592856,2672.8,2672.5,0.7863]
[1727559783339,1.56298856,2672.7,2672.5,0.7863]
[1727559783634,1.56298856,2672.7,2672.6,0.09958656]
[1727559783931,1.56298856,2672.7,2672.5,0.7863]
[1727559784435,1.56298856,2672.7,2672.6,0.09958656]
[1727559784597,1.56298856,2672.7,2672.5,0.7863]
[1727559784800,1.56298856,2672.7,2672.6,0.09958656]
[1727559784992,1.56298856,2672.7,2672.5,0.7863]
[1727559785197,1.56298856,2672.7,2672.6,0.09958656]
[1727559785397,1.56298856,2672.7,2672.5,0.7863]
[1727559785597,1.56298856,2672.7,2672.6,0.09958656]
[1727559785798,1.56298856,2672.7,2672.5,0.7863]
[1727559785998,1.56298856,2672.7,2672.6,0.09958656]
[1727559786295,1.56298856,2672.7,2672.5,0.7863]
[1727559786516,1.56298856,2672.7,2672.6,0.09958656]
[1727559786908,1.56298856,2672.7,2672.5,0.7863]
[1727559787318,1.56298856,2672.7,2672.6,0.09958656]
[1727559787863,1.56298856,2672.7,2672.5,0.7863]
[1727559788033,1.56298856,2672.7,2672.6,0.09958656]
[1727559788429,1.56298856,2672.7,2672.5,1.239132]
[1727559788634,1.56298856,2672.7,2672.6,0.09958656]
[1727559789469,1.56298856,2672.7,2672.5,0.7863]
[1727559789633,1.56298856,2672.7,2672.6,0.09958656]
[1727559789955,1.56298856,2672.7,2672.5,0.7863]
[1727559790121,1.56298856,2672.7,2672.5,1.239132]
[1727559790455,1.56298856,2672.7,2672.6,0.09958656]
[1727559790665,5.6933293,2672.8,2672.5,0.7863]
[1727559790845,1.56152063,2672.6,2672.5,0.7863]
[1727559792066,1.56152063,2672.6,2672.5,1.239132]
[1727559794054,1.9518693,2672.8,2672.5,1.239132]
[1727559794055,1.56152063,2672.7,2672.5,1.239132]
[1727559796133,1.56152063,2672.8,2672.5,1.239132]
[1727559796334,1.56152063,2672.8,2672.6,0.4981062]
[1727559797435,1.56152063,2672.8,2672.7,0.0991976]
[1727559798043,1.56152063,2672.8,2672.5,4.52804]
[1727559798248,1.56152063,2672.8,2672.7,0.0991976]
[1727559798540,1.56152063,2672.8,2672.5,4.52804]
[1727559798734,1.56152063,2672.8,2672.7,0.0991976]
[1727559798930,1.56152063,2672.9,2672.7,0.7919]
[1727559799368,1.56152063,2672.9,2672.8,0.0991976]
[1727559799664,1.56152063,2672.9,2672.8,0.50855616]
[1727559799868,1.56152063,2673.0,2672.8,0.6076462]
[1727559800477,1.56152063,2673.3,2673.0,4.53293]
[1727559800681,1.56152063,2673.4,2673.1,0.882417]
[1727559801268,1.56152063,2673.4,2673.2,0.09882526]
[1727559801470,1.56152063,2673.4,2673.3,0.7919]
[1727559801629,1.56152063,2673.5,2673.3,0.7919]
[1727559802104,1.56152063,2673.5,2673.4,0.09859363]
[1727559802463,3.13839663,2673.6,2673.4,0.09859363]
[1727559803878,1.576876,2673.6,2673.4,0.09859363]
[1727559804307,3.13839663,2673.6,2673.4,0.09859363]
[1727559804607,1.576876,2673.6,2673.4,0.09859363]
[1727559807819,1.56152063,2673.8,2673.4,0.56170999]
[1727559808020,3.73986,2673.9,2673.5,0.781]
[1727559808207,5.30138063,2673.9,2673.5,1.76188637]
[1727559808389,3.73986,2673.9,2673.5,1.76188637]
[1727559809634,3.13839663,2674.0,2673.5,1.76188637]
[1727559809635,5.30130063,2674.0,2673.5,1.76188637]
[1727559809840,5.30130063,2674.0,2673.6,0.59655427]
[1727559810002,5.316656,2674.0,2673.5,5.403772]
[1727559810205,5.316656,2674.0,2673.6,0.09837032]
[1727559810400,5.316656,2674.0,2673.7,0.55021423]
[1727559810808,5.316656,2674.0,2673.8,0.09837032]
[1727559811007,5.316656,2674.0,2673.5,5.403772]
[1727559811322,5.316656,2674.0,2673.6,0.09837032]
[1727559812411,5.316656,2674.0,2673.7,0.781]
[1727559812651,5.316656,2674.0,2673.8,0.09770038]
[1727559812841,5.30098063,2674.2,2673.7,0.781]
[1727559813008,0.7612,2674.3,2673.9,0.09770038]
[1727559813209,4.50052,2674.3,2673.9,0.46187004]
[1727559813422,3.73932,2674.3,2674.0,0.87843577]
[1727559813617,1.576876,2674.4,2674.0,0.781]
[1727559813618,5.316086,2674.4,2674.0,0.781]
[1727559814051,5.316086,2674.4,2674.1,0.09743577]
[1727559816322,1.576876,2674.4,2674.1,0.09743577]
[1727559817729,5.316056,2674.4,2674.1,0.09743577]
[1727559818125,1.576876,2674.4,2674.1,0.09743577]
[1727559818339,0.7852,2674.4,2674.1,0.09743577]
[1727559818557,1.576876,2674.4,2674.1,0.86273577]
[1727559818869,1.576876,2674.4,2674.2,0.0974275]
[1727559819429,3.73911,2674.5,2674.2,0.0974275]
[1727559819632,3.73911,2674.5,2674.2,0.55767125]
[1727559824982,4.52403,2674.7,2674.2,4.29709125]
[1727559825298,6.100906,2674.7,2674.3,0.50623913]
[1727559825499,6.100906,2674.7,2674.3,0.60333596]
[1727559825994,5.315706,2674.7,2674.3,0.60333596]
[1727559826154,5.315706,2674.7,2674.4,0.8235]
[1727559826695,5.315706,2674.7,2674.5,0.09574971]
[1727559828878,9.849106,2674.9,2674.5,0.09574971]
[1727559829081,6.110526,2674.9,2674.5,0.09574971]
[1727559830259,6.110526,2674.9,2674.5,0.56158968]
[1727559830701,4.53365,2674.9,2674.5,0.56158968]
[1727559830859,5.315426,2674.9,2674.5,0.56158968]
[1727559831515,1.576876,2674.9,2674.5,0.56158968]
[1727559832238,1.576876,2674.9,2674.5,4.30058968]
[1727559832440,1.576876,2674.9,2674.7,0.8235]
[1727559832944,2.371976,2675.1,2674.7,0.8235]
[1727559833116,1.576876,2675.1,2674.8,0.09566709]
[1727559833321,3.73813,2675.2,2674.8,0.09566709]
[1727559833645,3.73813,2675.2,2674.9,0.09566709]
[1727559833837,6.109966,2675.3,2674.9,0.09566709]
[1727559834345,6.109946,2675.3,2674.9,0.09566709]
[1727559834643,3.73805,2675.2,2674.9,0.09566709]
[1727559834844,3.73805,2675.2,2674.9,0.65427149]
[1727559835216,5.314926,2675.2,2674.9,0.65427149]
[1727559835524,4.53307,2675.3,2674.9,0.65427149]
[1727559835525,3.73783,2675.4,2675.0,0.8235]
[1727559835836,3.73772,2675.5,2675.1,0.09544406]
[1727559836039,3.73772,2675.5,2675.3,0.8235]
[1727559836629,1.576876,2675.6,2675.4,0.09535321]
[1727559836837,3.73752,2675.6,2675.4,0.09535321]
[1727559838571,3.73743,2675.7,2675.4,0.09535321]
[1727559839252,7.47489,2675.7,2675.4,0.09535321]
[1727559840436,3.73743,2675.7,2675.4,0.09535321]
[1727559840636,3.73743,2675.7,2675.4,0.56103753]
[1727559843144,3.73743,2675.7,2675.5,0.7583]
[1727559843567,3.73743,2675.7,2675.6,0.09452727]
[1727559850771,3.73743,2675.7,2675.5,0.72468387]
[1727559851002,3.73743,2675.7,2675.6,0.09117822]
[1727559851231,5.314136,2675.8,2675.6,0.09117822]
[1727559851497,5.314136,2675.8,2675.5,0.72468387]
[1727559851704,5.314136,2675.8,2675.7,0.08790487]
[1727559851891,5.314136,2675.8,2675.5,0.72468387]
[1727559852094,5.314136,2675.8,2675.7,0.08790487]
[1727559852409,5.314136,2675.8,2675.5,0.72468387]
[1727559852905,5.314136,2675.8,2675.6,0.08790487]
[1727559853208,5.314136,2675.8,2675.5,0.72468387]
[1727559853594,5.314136,2675.8,2675.6,0.08790487]
[1727559854001,5.314136,2675.8,2675.5,0.72468387]
[1727559854309,5.314136,2675.8,2675.6,0.08501922]
[1727559854507,5.314136,2675.8,2675.5,0.72468387]
[1727559854669,5.314136,2675.8,2675.7,0.08221193]
[1727559854871,5.314136,2675.8,2675.5,0.72468387]
[1727559855070,5.314136,2675.8,2675.7,0.08221193]
[1727559855270,5.314136,2675.8,2675.5,0.72468387]
[1727559855503,5.314136,2675.8,2675.7,0.08222015]
[1727559855696,5.314136,2675.8,2675.5,0.72468387]
[1727559855878,5.314136,2675.8,2675.7,0.08222015]
[1727559856079,5.314136,2675.8,2675.5,0.72468387]
[1727559856284,5.314136,2675.8,2675.7,0.08222015]
[1727559856497,5.314136,2675.8,2675.5,0.72468387]
[1727559856699,5.314136,2675.8,2675.7,0.08222015]
[1727559856880,5.314136,2675.8,2675.5,0.72468387]
[1727559857230,5.314136,2675.8,2675.7,0.08222015]
[1727559857414,5.314136,2675.8,2675.5,0.72468387]
[1727559857718,5.314136,2675.8,2675.6,0.08222015]
[1727559857912,5.314136,2675.8,2675.5,0.72468387]
[1727559858102,5.314136,2675.8,2675.7,0.08222015]
[1727559858277,5.314136,2675.8,2675.5,0.72468387]
[1727559858480,5.314136,2675.8,2675.7,0.08222015]
[1727559858680,5.314136,2675.8,2675.5,0.72468387]
[1727559858904,5.314136,2675.8,2675.7,0.08222015]
[1727559859109,5.314136,2675.8,2675.5,0.72468387]
[1727559859313,5.314136,2675.8,2675.7,0.08222015]
[1727559859615,5.314136,2675.8,2675.5,0.72468387]
[1727559859986,5.314136,2675.8,2675.6,0.08222015]
[1727559860414,5.314136,2675.8,2675.5,0.72468387]
[1727559860775,5.314136,2675.8,2675.6,0.08222015]
[1727559861193,5.314136,2675.8,2675.5,0.72468387]
[1727559861589,5.314136,2675.8,2675.6,0.08222015]
[1727559861978,5.314136,2675.8,2675.5,0.72468387]
[1727559862390,5.314136,2675.8,2675.6,0.08222015]
[1727559862887,5.314136,2675.8,2675.5,0.72468387]
[1727559863219,5.314136,2675.8,2675.7,0.08222015]
[1727559863387,5.314136,2675.8,2675.5,0.72468387]
[1727559863798,5.314136,2675.8,2675.6,0.08222015]
[1727559864123,4.50356,2675.7,2675.2,0.763]
[1727559864283,1.576876,2675.4,2674.7,0.763]
[1727559864485,6.080746,2675.4,2674.9,3.73838]
[1727559867152,6.080746,2675.4,2674.9,7.47676]
[1727559867699,6.080746,2675.4,2674.9,3.73838]
[1727559867934,9.818586,2675.4,2674.9,3.73838]
[1727559868235,4.50387,2675.4,2674.9,3.73838]
[1727559868443,1.576876,2675.3,2674.9,3.73838]
[1727559869306,4.50387,2675.4,2674.7,3.73865]
[1727559869307,0.8304,2675.0,2674.7,3.73865]
[1727559869622,0.8304,2675.0,2674.5,4.5601]
[1727559869943,4.56873,2675.0,2674.5,4.5601]
[1727559870496,8.30717,2675.0,2674.5,3.73901]
[1727559870712,8.30712,2675.0,2674.5,3.73901]
[1727559870906,9.883996,2675.0,2674.5,3.73901]
[1727559871120,3.73853,2674.9,2674.3,4.56031]
[1727559871441,3.73853,2674.9,2674.3,8.2995]
[1727559871612,3.73853,2674.9,2674.3,4.56029]
[1727559871808,3.73853,2674.9,2674.4,3.73914]
[1727559872015,3.73853,2674.9,2674.3,8.2995]
[1727559872543,3.73853,2674.9,2674.4,3.82191938]
[1727559874236,1.576876,2674.8,2674.4,3.82191938]
[1727559876321,0.8304,2674.7,2674.4,0.08277938]
[1727559876533,0.8304,2674.7,2674.4,3.82189938]
[1727559879338,0.8304,2674.7,2674.5,3.73899]
[1727559879534,0.8304,2674.7,2674.5,3.82264136]
[1727559890348,0.8304,2674.7,2674.5,0.08365136]
[1727559890554,0.8304,2674.7,2674.3,7.47841]
[1727559890755,0.8304,2674.7,2674.6,0.08373364]
[1727559891075,0.8304,2674.7,2674.5,3.73901]
[1727559891265,0.8304,2674.7,2674.6,0.08373364]
[1727559895661,0.8304,2674.7,2674.3,3.73919]
[1727559895876,0.8304,2674.7,2674.6,0.08373364]
[1727559896083,0.8304,2674.7,2674.3,3.73919]
[1727559896385,0.8304,2674.7,2674.3,7.4784]
[1727559896556,0.8304,2674.7,2674.4,0.08373364]
[1727559900785,4.56915,2674.7,2674.4,0.08373364]
[1727559900981,4.56915,2674.7,2674.2,3.73942]
[1727559901153,4.56915,2674.7,2674.3,0.08373364]
[1727559901346,4.56915,2674.7,2674.1,3.73947]
[1727559901555,6.146026,2674.7,2674.2,3.82312364]
[1727559902578,9.884856,2674.7,2674.2,3.82312364]
[1727559903578,6.146026,2674.7,2674.2,3.82312364]
[1727559906060,9.884876,2674.7,2674.2,3.82312364]
[1727559906578,6.146026,2674.7,2674.2,3.82312364]
[1727559907866,7.70754663,2674.7,2674.2,3.82312364]
[1727559908066,6.146026,2674.7,2674.2,3.82312364]
[1727559908293,7.70754663,2674.7,2674.2,3.82312364]
[1727559909801,1.56152063,2674.6,2674.2,3.82312364]
[1727559913565,1.56152063,2674.5,2674.2,3.82312364]
[1727559921394,1.56152063,2674.5,2674.2,7.56248364]
[1727559921707,1.56152063,2674.5,2674.2,3.82309364]
[1727559924135,0.7851,2674.4,2674.2,3.82309364]
[1727559927838,1.56152063,2674.5,2674.2,3.82309364]
[1727559930014,1.56152063,2674.4,2674.2,3.82309364]
[1727559930252,1.56152063,2674.5,2674.2,3.82309364]
[1727559930558,1.56152063,2674.4,2674.2,3.82309364]
[1727559930918,1.56152063,2674.5,2674.2,3.82309364]
[1727559932020,1.56152063,2674.4,2674.2,3.82309364]
[1727559941955,1.56152063,2674.3,2674.2,3.82309364]
[1727559943458,1.56152063,2674.4,2674.2,3.82309364]
[1727559944634,1.95560385,2674.5,2674.2,3.82309364]
[1727559944635,1.56152063,2674.3,2674.2,3.82309364]
[1727559944834,1.56152063,2674.4,2674.2,3.82309364]
[1727559945264,1.56152063,2674.4,2674.2,0.08373364]
[1727559945567,1.56152063,2674.3,2674.0,8.26163]
[1727559946068,1.56152063,2674.3,2674.1,0.08438379]
[1727559957771,1.56152063,2674.4,2674.1,0.08438379]
[1727559959688,1.56152063,2674.3,2674.1,0.08438379]
[1727559960025,1.56152063,2674.4,2674.1,0.08438379]
[1727559960188,1.56152063,2674.3,2674.1,0.08438379]
[1727559960685,1.56152063,2674.4,2674.1,3.82393379]
[1727559964983,1.56152063,2674.3,2674.1,3.82393379]
[1727559966186,1.56152063,2674.4,2674.1,3.82393379]
[1727559966967,1.56152063,2674.3,2674.1,3.82393379]
[1727559967991,1.56152063,2674.4,2674.1,3.82393379]
[1727559969051,1.56152063,2674.3,2674.1,3.82393379]
[1727559969753,2.34672063,2674.3,2674.1,0.08438379]
[1727559972819,3.92359663,2674.3,2674.1,0.08438379]
[1727559973112,3.92359663,2674.3,2673.9,3.73985]
[1727559973273,3.92359663,2674.3,2674.2,0.08444965]
[1727559973474,3.92359663,2674.3,2673.9,3.73985]
[1727559973699,3.92359663,2674.3,2674.2,0.08444965]
[1727559974300,3.92359663,2674.3,2673.9,3.73985]
[1727559974499,3.92359663,2674.3,2674.2,0.08444965]
[1727559974698,3.92359663,2674.3,2673.9,3.73985]
[1727559974901,3.92359663,2674.3,2674.2,0.08444965]
[1727559975090,3.92359663,2674.3,2673.9,3.73985]
[1727559975291,3.92359663,2674.3,2674.2,0.08444965]
[1727559975492,3.92359663,2674.3,2674.0,3.7397]
[1727559975694,3.92359663,2674.3,2674.2,0.08452372]
[1727559976219,3.92359663,2674.3,2674.0,3.7397]
[1727559976424,3.92359663,2674.3,2674.1,0.08452372]
[1727559982799,1.56152063,2674.2,2673.9,3.73985]
[1727559983133,1.56152063,2674.2,2674.0,0.08452372]
[1727559983428,1.56152063,2674.2,2674.0,3.82421372]
[1727559984331,3.92359663,2674.3,2674.0,3.82421372]
[1727559984547,1.56152063,2674.2,2674.0,3.82421372]
[1727559984908,1.56152063,2674.2,2674.0,0.08452372]
[1727559985433,3.92359663,2674.3,2674.1,0.08452372]
[1727559985794,3.92359663,2674.3,2673.9,3.73978]
[1727559986022,3.92359663,2674.3,2674.0,0.08452372]
[1727559986236,1.56152063,2674.2,2674.0,0.08452372]
[1727559986596,3.92359663,2674.3,2674.0,0.08452372]
[1727559987219,1.56152063,2674.2,2674.0,0.08452372]
[1727559988497,1.576876,2674.1,2674.0,0.08452372]
[1727559988999,3.13839663,2674.1,2674.0,0.08382169]
[1727559989198,3.13839663,2674.1,2673.8,7.47988]
[1727559989199,1.576876,2674.1,2673.8,7.47988]
[1727559989430,1.576876,2674.1,2673.9,0.08382169]
[1727559989609,0.8144,2674.0,2673.9,0.08382169]
[1727559990133,3.13839663,2674.1,2673.9,0.08382169]
[1727559990905,1.56152063,2674.0,2673.9,0.08382169]
[1727559991317,1.56152063,2674.0,2673.7,3.74012]
[1727559991510,1.56152063,2674.0,2673.9,0.08382169]
[1727559991711,1.56152063,2674.0,2673.7,3.74012]
[1727559992202,3.13839663,2674.1,2673.8,0.08382169]
[1727559992432,3.13839663,2674.1,2673.8,3.73999]
[1727559992638,1.56152063,2674.0,2673.9,0.08382169]
[1727559993135,3.13839663,2674.1,2673.9,0.08382169]
[1727560001230,1.576876,2674.1,2673.9,0.08382169]
[1727560001550,3.13839663,2674.1,2673.9,0.08382169]
[1727560002440,1.576876,2674.1,2673.9,3.82364169]
[1727560003837,1.56152063,2674.2,2674.1,4.50237]
[1727560004041,3.13839663,2674.5,2674.1,0.84702507]
[1727560004242,3.13839663,2674.5,2674.4,3.73915]
[1727560004754,1.576876,2674.5,2674.4,3.73915]
[1727560005425,1.576876,2674.5,2674.4,3.82337507]
[1727560006451,1.576876,2674.5,2674.4,0.08422507]
[1727560014678,1.576876,2674.5,2674.4,0.85592507]
[1727560015039,3.13839663,2674.7,2674.4,0.85592507]
[1727560015240,3.13839663,2674.7,2674.4,0.7717]
[1727560016463,3.13839663,2674.7,2674.5,0.08370643]
[1727560016852,0.8316,2674.6,2674.5,0.08370643]
[1727560017052,3.13839663,2674.7,2674.3,3.73928]
[1727560017253,3.13839663,2674.7,2674.4,0.08370643]
[1727560017991,3.13839663,2674.7,2674.4,0.85540643]
[1727560019388,1.56152063,2674.7,2674.4,4.59455643]
[1727560019589,1.576876,2674.7,2674.4,4.59455643]
[1727560019790,1.576876,2674.7,2674.4,8.33364643]
[1727560020475,1.576876,2674.7,2674.5,3.73896]
[1727560020666,1.576876,2674.7,2674.6,3.73887]
[1727560020862,1.576876,2674.7,2674.6,3.82257643]
[1727560026558,1.576876,2674.9,2674.7,0.8149]
[1727560027209,1.576876,2674.9,2674.8,0.08341834]
[1727560027630,1.576876,2674.9,2674.7,0.8149]
[1727560027763,1.576876,2674.9,2674.8,0.08341834]
[1727560027958,1.56152063,2675.1,2674.8,0.08341834]
[1727560028163,6.11846063,2675.2,2674.7,8.2922]
[1727560028364,1.576876,2674.9,2674.8,3.73859]
[1727560028565,1.576876,2674.9,2674.8,3.82197542]
[1727560033615,1.576876,2674.9,2674.8,4.65952796]
[1727560038189,1.576876,2675.1,2674.9,3.73845]
[1727560038598,1.576876,2675.1,2675.0,0.08297394]
[1727560041031,1.576876,2675.1,2674.8,3.73851]
[1727560041195,1.576876,2675.1,2675.0,0.08297394]
[1727560041396,1.576876,2675.1,2674.8,3.73851]
[1727560041933,1.576876,2675.1,2674.9,0.08297394]
[1727560045639,1.576876,2675.1,2675.0,0.7576]
[1727560045794,1.576876,2675.1,2675.0,0.84057394]
[1727560051923,1.576876,2675.1,2675.0,0.08297394]
[1727560052948,1.576876,2675.1,2675.0,3.82128394]
[1727560060442,3.13839663,2675.3,2675.0,3.82128394]
[1727560060964,3.13839663,2675.3,2675.1,0.779]
[1727560061162,1.576876,2675.3,2675.1,0.779]
[1727560061370,3.13839663,2675.3,2675.2,0.08266128]
[1727560061575,1.576876,2675.3,2675.1,0.779]
[1727560061751,1.576876,2675.3,2675.2,0.08253788]
[1727560061935,3.13839663,2675.3,2675.2,0.08253788]
[1727560065370,3.53148168,2675.3,2675.2,0.08253788]
[1727560065572,1.576876,2675.3,2675.2,0.08253788]
[1727560066151,3.53148168,2675.3,2675.2,0.08253788]
[1727560066468,1.576876,2675.3,2675.2,0.08253788]
[1727560067046,3.53148168,2675.3,2675.2,0.08253788]
[1727560067442,1.576876,2675.3,2675.2,0.08253788]
[1727560067778,3.53258431,2675.3,2675.2,0.08253788]
[1727560069065,1.576876,2675.3,2675.2,0.08253788]
[1727560069265,3.53258431,2675.3,2675.2,0.08253788]
[1727560069448,1.576876,2675.3,2675.2,0.08253788]
[1727560070069,3.53258431,2675.3,2675.2,0.08253788]
[1727560072726,1.576876,2675.3,2675.2,0.08253788]
[1727560079262,3.53517198,2675.3,2675.2,0.08253788]
[1727560080682,1.576876,2675.3,2675.2,0.08253788]
[1727560082952,3.53544558,2675.3,2675.2,0.08253788]
[1727560083153,3.53546954,2675.3,2675.2,0.08253788]
[1727560084575,1.576876,2675.3,2675.2,0.08253788]
[1727560084755,2.376476,2675.3,2675.0,3.73824]
[1727560084956,1.56686205,2675.1,2675.0,3.73824]
[1727560087980,0.7996,2675.0,2674.4,5.35089508]
[1727560088274,1.576876,2674.6,2674.2,4.52456508]
[1727560088496,0.8092,2674.3,2674.0,3.73962]
[1727560088887,2.37607968,2674.3,2674.0,3.73962]
[1727560089697,0.8092,2674.3,2673.8,4.54274]
[1727560090006,1.576876,2674.2,2673.8,8.28263]
[1727560090168,1.576876,2674.2,2673.8,3.73989]
[1727560090510,1.576876,2674.2,2673.7,3.74012]
[1727560091529,1.576876,2674.2,2673.6,4.54294]
[1727560091673,1.576876,2674.2,2673.8,3.73996]
[1727560092002,6.88326568,2674.2,2673.6,7.48033]
[1727560092408,5.316386,2674.2,2673.6,7.48033]
[1727560092703,1.576876,2674.0,2673.6,7.48032]
[1727560093180,1.576876,2674.0,2673.6,8.34015297]
[1727560093382,1.576876,2674.0,2673.6,4.59997297]
[1727560094102,1.576876,2674.0,2673.6,8.34017297]
[1727560095354,1.576876,2674.0,2673.6,7.43034]
[1727560097714,1.576876,2674.0,2673.7,3.823917]
[1727560099032,0.7543,2673.9,2673.7,3.823917]
[1727560118072,1.576876,2674.0,2673.7,3.823917]
[1727560123669,3.73957,2674.1,2673.7,3.823917]
[1727560123897,1.576876,2674.0,2673.7,3.823917]
[1727560128498,1.576876,2674.0,2673.7,0.083797]
[1727560128923,1.576876,2674.0,2673.6,3.74026]
[1727560129401,1.576876,2674.0,2673.7,0.08380524]
[1727560133328,3.14375568,2674.0,2673.7,0.08380524]
[1727560134447,1.56687968,2673.9,2673.7,0.08380524]
[1727560139372,1.56687968,2673.8,2673.7,0.08380524]
[1727560139531,1.56687968,2673.8,2673.6,3.74026]
[1727560139731,1.56687968,2673.8,2673.7,0.08383821]
[1727560141435,3.14375568,2673.8,2673.7,0.08383821]
[1727560141660,1.576876,2673.8,2673.7,0.08383821]
[1727560141874,1.576876,2673.8,2673.4,4.54325]
[1727560142179,1.56330454,2673.7,2673.4,4.54325]
[1727560142649,1.56330454,2673.7,2673.5,0.08383821]
[1727560145744,2.389576,2673.6,2673.5,0.08383821]
[1727560146055,3.95288054,2673.6,2673.5,0.08394525]
[1727560146259,3.95288054,2673.6,2673.2,4.52834]
[1727560146576,3.95288054,2673.6,2673.5,0.08394525]
[1727560146733,3.95288054,2673.6,2673.2,8.26909]
[1727560146933,3.95288054,2673.6,2673.5,0.08394525]
[1727560147366,3.95288054,2673.6,2673.2,8.26909]
[1727560147560,3.95288054,2673.6,2673.5,0.08394525]
[1727560147766,3.95288054,2673.6,2673.2,8.26909]
[1727560147951,3.95288054,2673.6,2673.5,0.08394525]
[1727560148148,2.389576,2673.6,2673.2,8.26909]
[1727560148356,2.389576,2673.6,2673.5,0.08394525]
[1727560148761,2.389576,2673.6,2673.3,3.74069]
[1727560148963,2.389576,2673.6,2673.5,0.08394525]
[1727560149163,2.389576,2673.6,2673.3,3.74069]
[1727560149343,1.576876,2673.6,2673.5,0.08394525]
[1727560149543,1.576876,2673.6,2673.3,3.74069]
[1727560149735,1.576876,2673.6,2673.5,0.08394525]
[1727560150140,1.576876,2673.6,2673.3,3.74069]
[1727560150387,1.576876,2673.6,2673.5,0.08394525]
[1727560150580,3.14018054,2673.6,2673.3,3.74069]
[1727560150743,1.576876,2673.6,2673.5,0.08417582]
[1727560151542,1.576876,2673.6,2673.3,3.74069]
[1727560152105,1.576876,2673.6,2673.4,0.08417582]
[1727560154071,1.576876,2673.6,2673.4,3.82471582]
[1727560160916,1.576876,2673.6,2673.5,3.74041]
[1727560161315,1.576876,2673.6,2673.5,3.82484935]
[1727560169334,1.56330454,2673.7,2673.5,3.82484935]
[1727560179040,1.56330454,2673.7,2673.5,0.08443935]
[1727560179245,1.56330454,2673.6,2673.4,3.74055]
[1727560179542,1.56330454,2673.6,2673.5,0.08167686]
[1727560180037,1.95389807,2673.7,2673.4,3.74055]
[1727560180242,1.576876,2673.6,2673.5,0.08171799]
[1727560180440,2.353076,2673.6,2673.5,0.08171799]
[1727560180598,3.91617275,2673.6,2673.5,0.08171799]
[1727560180798,1.56309675,2673.6,2673.5,0.08171799]
[1727560181037,1.56307871,2673.6,2673.5,0.08171799]
[1727560181239,1.56307871,2673.6,2673.2,7.48149]
[1727560181240,2.73009807,2673.6,2673.2,3.74074]
[1727560181411,1.56291575,2673.5,2673.2,3.74074]
[1727560181610,1.56291575,2673.5,2673.3,3.82240622]
[1727560181825,2.73009807,2673.5,2673.3,0.08172622]
[1727560182026,3.53037848,2673.4,2673.3,0.08172622]
[1727560182267,11.04717624,2673.4,2673.3,0.08172622]
[1727560182419,11.04717624,2673.4,2673.3,0.07631071]
[1727560182420,9.093626,2673.4,2673.3,0.07631071]
[1727560182620,3.74077,2673.3,2672.8,4.5591]
[1727560182979,3.13909592,2673.1,2672.9,0.07631071]
[1727560183423,1.95278781,2673.2,2672.9,0.07631071]
[1727560183424,1.56221992,2673.2,2672.9,0.07631071]
[1727560183763,1.576876,2673.0,2672.9,0.07631071]
[1727560184060,1.576876,2673.0,2672.5,4.55957]
[1727560184532,1.576876,2673.0,2672.6,0.07675502]
[1727560187419,1.576876,2672.8,2672.6,0.07675502]